[Event "Titled Tuesday Blitz May 23 Late 2023"]
[White "Evdokimov, Alexey"]
[Black "Kisic, Bozidar"]
[WhiteFideId "24162450"]
[BlackFideId "16500350"]
[WhiteElo "2154"]
[BlackElo "2234"]
[Result "0-1"]
[Round "07"]
[TimeControl "180+2"]
[Date "2023.05.23"]
[WhiteClock "0:00:00"]
[BlackClock "0:00:16"]

1. e4 {[%clk 0:02:51]}  g6 {[%clk 0:02:59]} 2. d4 {[%clk 0:02:51]}  Bg7 {[%clk 0:02:59]} 3. c3 {[%clk 0:02:50]}  d6 {[%clk 0:02:59]} 4. Bd3 {[%clk 0:02:48]}  c6 {[%clk 0:02:59]} 5. f4 {[%clk 0:02:40]}  b5 {[%clk 0:02:48]} 6. e5 {[%clk 0:02:34]}  Nh6 {[%clk 0:02:40]} 7. Nf3 {[%clk 0:02:32]}  O-O {[%clk 0:02:39]} 8. O-O {[%clk 0:02:32]}  a6 {[%clk 0:02:32]} 9. Nbd2 {[%clk 0:02:27]}  c5 {[%clk 0:02:31]} 10. Ne4 {[%clk 0:02:24]}  cxd4 {[%clk 0:02:29]} 11. cxd4 {[%clk 0:02:24]}  dxe5 {[%clk 0:02:16]} 12. dxe5 {[%clk 0:02:21]}  Nc6 {[%clk 0:02:11]} 13. Neg5 {[%clk 0:01:45]}  Bf5 {[%clk 0:02:01]} 14. Bxf5 {[%clk 0:01:37]}  Qb6+ {[%clk 0:01:57]} 15. Kh1 {[%clk 0:01:29]}  Nxf5 {[%clk 0:01:57]} 16. Qe1 {[%clk 0:01:12]}  Rfd8 {[%clk 0:01:42]} 17. Nh4 {[%clk 0:01:00]}  Ncd4 {[%clk 0:01:23]} 18. Be3 {[%clk 0:00:47]}  Qb7 {[%clk 0:01:24]} 19. Nxf5 {[%clk 0:00:29]}  Nxf5 {[%clk 0:01:23]} 20. Bg1 {[%clk 0:00:22]}  Rac8 {[%clk 0:01:17]} 21. Rc1 {[%clk 0:00:09]}  h6 {[%clk 0:01:16]} 22. Nf3 {[%clk 0:00:08]}  Qd5 {[%clk 0:01:10]} 23. Rxc8 {[%clk 0:00:07]}  Rxc8 {[%clk 0:01:11]} 24. Qd1 {[%clk 0:00:06]}  Qxa2 {[%clk 0:01:03]} 25. Qd7 {[%clk 0:00:06]}  Qc4 {[%clk 0:01:03]} 26. Rd1 {[%clk 0:00:04]}  h5 {[%clk 0:00:46]} 27. Bf2 {[%clk 0:00:03]}  Qc6 {[%clk 0:00:45]} 28. Qxc6 {[%clk 0:00:02]}  Rxc6 {[%clk 0:00:46]} 29. Rd8+ {[%clk 0:00:02]}  Bf8 {[%clk 0:00:44]} 30. h3 {[%clk 0:00:02]}  Ng7 {[%clk 0:00:42]} 31. Bh4 {[%clk 0:00:01]}  Ne6 {[%clk 0:00:42]} 32. Ra8 {[%clk 0:00:01]}  Kg7 {[%clk 0:00:27]} 33. Ng5 {[%clk 0:00:01]}  Nxg5 {[%clk 0:00:25]} 34. Bxg5 {[%clk 0:00:02]}  Rc2 {[%clk 0:00:22]} 35. Rxa6 {[%clk 0:00:02]}  Rxb2 {[%clk 0:00:22]} 36. Ra7 {[%clk 0:00:02]}  b4 {[%clk 0:00:19]} 37. Bxe7 {[%clk 0:00:02]}  Bxe7 {[%clk 0:00:20]} 38. Rxe7 {[%clk 0:00:03]}  Re2 {[%clk 0:00:19]} 39. Rb7 {[%clk 0:00:03]}  Re4 {[%clk 0:00:20]} 40. g3 {[%clk 0:00:03]}  h4 {[%clk 0:00:20]} 41. gxh4 {[%clk 0:00:02]}  Rxf4 {[%clk 0:00:20]} 42. Kg2 {[%clk 0:00:03]}  Re4 {[%clk 0:00:20]} 43. Kf3 {[%clk 0:00:02]}  Rxe5 {[%clk 0:00:20]} 44. Rxb4 {[%clk 0:00:02]}  Kh6 {[%clk 0:00:20]} 45. Kg3 {[%clk 0:00:02]}  Rf5 {[%clk 0:00:20]} 46. Rc4 {[%clk 0:00:02]}  Rf6 {[%clk 0:00:19]} 47. Rd4 {[%clk 0:00:02]}  Kh5 {[%clk 0:00:20]} 48. Rc4 {[%clk 0:00:03]}  Rf5 {[%clk 0:00:20]} 49. Rd4 {[%clk 0:00:03]}  Rb5 {[%clk 0:00:20]} 50. Re4 {[%clk 0:00:02]}  Rb3+ {[%clk 0:00:20]} 51. Kg2 {[%clk 0:00:02]}  Rd3 {[%clk 0:00:19]} 52. Rc4 {[%clk 0:00:02]}  Re3 {[%clk 0:00:18]} 53. Rb4 {[%clk 0:00:02]}  f5 {[%clk 0:00:18]} 54. Rc4 {[%clk 0:00:03]}  Re4 {[%clk 0:00:17]} 55. Rc8 {[%clk 0:00:02]}  Kxh4 {[%clk 0:00:17]} 56. Rh8+ {[%clk 0:00:02]}  Kg5 {[%clk 0:00:18]} 57. Rc8 {[%clk 0:00:02]}  Re3 {[%clk 0:00:17]} 58. Rc4 {[%clk 0:00:02]}  Kh5 {[%clk 0:00:17]} 59. Rd4 {[%clk 0:00:01]}  Ra3 {[%clk 0:00:16]} 60. Rc4 {[%clk 0:00:01]}  g5 {[%clk 0:00:16]} 61. Rc8 {[%clk 0:00:00]}  Kg6 {[%clk 0:00:16]} 0-1


[Site "https://www.chess.com"]

[Event "Titled Tuesday Blitz May 23 Late 2023"]
[White "Carrasco Miranda, Andres"]
[Black "Haszon, David"]
[WhiteFideId "3405990"]
[BlackFideId "733610"]
[WhiteElo "2183"]
[BlackElo "2210"]
[Result "1/2-1/2"]
[Round "07"]
[TimeControl "180+2"]
[Date "2023.05.23"]
[WhiteClock "0:00:56"]
[BlackClock "0:01:03"]

1. d4 {[%clk 0:03:00]}  Nf6 {[%clk 0:03:00]} 2. c4 {[%clk 0:02:59]}  c5 {[%clk 0:03:00]} 3. d5 {[%clk 0:02:58]}  b5 {[%clk 0:03:01]} 4. cxb5 {[%clk 0:02:59]}  a6 {[%clk 0:03:01]} 5. bxa6 {[%clk 0:03:00]}  Bxa6 {[%clk 0:03:01]} 6. Nc3 {[%clk 0:03:01]}  g6 {[%clk 0:03:02]} 7. e4 {[%clk 0:03:01]}  Bxf1 {[%clk 0:03:01]} 8. Kxf1 {[%clk 0:03:02]}  d6 {[%clk 0:03:02]} 9. g3 {[%clk 0:03:02]}  Bg7 {[%clk 0:03:02]} 10. Kg2 {[%clk 0:03:03]}  O-O {[%clk 0:03:03]} 11. Nf3 {[%clk 0:03:04]}  Qa5 {[%clk 0:03:03]} 12. Bd2 {[%clk 0:03:02]}  Nbd7 {[%clk 0:03:03]} 13. Qc2 {[%clk 0:03:02]}  Rfb8 {[%clk 0:03:02]} 14. a4 {[%clk 0:03:01]}  Qb6 {[%clk 0:02:45]} 15. b3 {[%clk 0:02:53]}  Qxb3 {[%clk 0:02:42]} 16. Qxb3 {[%clk 0:02:48]}  Rxb3 {[%clk 0:02:43]} 17. Rab1 {[%clk 0:02:45]}  c4 {[%clk 0:02:43]} 18. Rxb3 {[%clk 0:02:39]}  cxb3 {[%clk 0:02:44]} 19. Rb1 {[%clk 0:02:39]}  Nc5 {[%clk 0:02:45]} 20. Be3 {[%clk 0:02:32]}  Nfxe4 {[%clk 0:02:05]} 21. Nxe4 {[%clk 0:02:33]}  Nxe4 {[%clk 0:02:06]} 22. Rxb3 {[%clk 0:02:33]}  Nc3 {[%clk 0:02:06]} 23. a5 {[%clk 0:01:46]}  Nxd5 {[%clk 0:01:56]} 24. a6 {[%clk 0:01:46]}  Nxe3+ {[%clk 0:01:56]} 25. Rxe3 {[%clk 0:01:46]}  Bf6 {[%clk 0:01:44]} 26. Ra3 {[%clk 0:01:44]}  Kf8 {[%clk 0:01:43]} 27. g4 {[%clk 0:01:44]}  h6 {[%clk 0:01:39]} 28. h4 {[%clk 0:01:39]}  g5 {[%clk 0:01:39]} 29. hxg5 {[%clk 0:01:38]}  hxg5 {[%clk 0:01:40]} 30. Ra5 {[%clk 0:01:38]}  Ke8 {[%clk 0:01:35]} 31. Nxg5 {[%clk 0:01:32]}  Bxg5 {[%clk 0:01:35]} 32. Rxg5 {[%clk 0:01:33]}  Rxa6 {[%clk 0:01:35]} 33. Rg8+ {[%clk 0:01:33]}  Kd7 {[%clk 0:01:35]} 34. Kg3 {[%clk 0:01:34]}  d5 {[%clk 0:01:34]} 35. Kf4 {[%clk 0:01:30]}  Rf6+ {[%clk 0:01:34]} 36. Ke3 {[%clk 0:01:30]}  e5 {[%clk 0:01:33]} 37. g5 {[%clk 0:01:28]}  Rf5 {[%clk 0:01:29]} 38. g6 {[%clk 0:01:27]}  Ke6 {[%clk 0:01:19]} 39. g7 {[%clk 0:01:20]}  Kf6 {[%clk 0:01:17]} 40. Rd8 {[%clk 0:00:54]}  d4+ {[%clk 0:01:17]} 41. Ke4 {[%clk 0:00:55]}  Rf4+ {[%clk 0:01:17]} 42. Kd5 {[%clk 0:00:55]}  Kxg7 {[%clk 0:01:12]} 43. Kxe5 {[%clk 0:00:56]}  Rxf2 {[%clk 0:01:10]} 44. Rxd4 {[%clk 0:00:56]}  Kg6 {[%clk 0:01:07]} 45. Rg4+ {[%clk 0:00:55]}  Kh5 {[%clk 0:01:04]} 46. Rf4 {[%clk 0:00:55]}  Rxf4 {[%clk 0:00:47]} 47. Kxf4 {[%clk 0:00:56]}  Kh6 {[%clk 0:00:47]} 48. Kf5 {[%clk 0:00:56]}  Kh7 {[%clk 0:00:46]} 49. Kf6 {[%clk 0:00:53]}  Kg8 {[%clk 0:00:46]} 50. Kf5 {[%clk 0:00:53]}  Kg7 {[%clk 0:00:46]} 51. Kg5 {[%clk 0:00:53]}  Kg8 {[%clk 0:00:47]} 52. Kf6 {[%clk 0:00:52]}  Kf8 {[%clk 0:00:47]} 53. Kf5 {[%clk 0:00:52]}  Ke8 {[%clk 0:00:47]} 54. Kf6 {[%clk 0:00:52]}  Kf8 {[%clk 0:00:48]} 55. Kf5 {[%clk 0:00:52]}  Ke7 {[%clk 0:00:49]} 56. Ke5 {[%clk 0:00:52]}  f6+ {[%clk 0:00:49]} 57. Kf5 {[%clk 0:00:52]}  Kf7 {[%clk 0:00:50]} 58. Kf4 {[%clk 0:00:53]}  Ke6 {[%clk 0:00:51]} 59. Ke4 {[%clk 0:00:53]}  Ke7 {[%clk 0:00:51]} 60. Kf4 {[%clk 0:00:52]}  Kf7 {[%clk 0:00:52]} 61. Kf5 {[%clk 0:00:52]}  Kg7 {[%clk 0:00:53]} 62. Kf4 {[%clk 0:00:52]}  Kg6 {[%clk 0:00:54]} 63. Kg4 {[%clk 0:00:53]}  f5+ {[%clk 0:00:54]} 64. Kf4 {[%clk 0:00:53]}  Kf6 {[%clk 0:00:55]} 65. Kf3 {[%clk 0:00:53]}  Ke6 {[%clk 0:00:56]} 66. Kf4 {[%clk 0:00:53]}  Kf6 {[%clk 0:00:56]} 67. Kf3 {[%clk 0:00:53]}  Ke5 {[%clk 0:00:57]} 68. Ke3 {[%clk 0:00:53]}  Kf6 {[%clk 0:00:58]} 69. Kf4 {[%clk 0:00:54]}  Kg6 {[%clk 0:00:58]} 70. Kf3 {[%clk 0:00:54]}  Kf6 {[%clk 0:00:59]} 71. Kf4 {[%clk 0:00:54]}  Kg6 {[%clk 0:00:58]} 72. Kf3 {[%clk 0:00:55]}  Kg5 {[%clk 0:00:58]} 73. Kg3 {[%clk 0:00:55]}  f4+ {[%clk 0:00:59]} 74. Kf3 {[%clk 0:00:55]}  Kf5 {[%clk 0:01:00]} 75. Kf2 {[%clk 0:00:55]}  Ke4 {[%clk 0:01:01]} 76. Ke2 {[%clk 0:00:56]}  Ke5 {[%clk 0:01:01]} 77. Kf3 {[%clk 0:00:56]}  Kf5 {[%clk 0:01:02]} 78. Kf2 {[%clk 0:00:56]}  Kg5 {[%clk 0:01:03]} 79. Kf3 {[%clk 0:00:56]}  Kf5 {[%clk 0:01:03]} 1/2-1/2


[Site "https://www.chess.com"]

[Event "Titled Tuesday Blitz May 23 Late 2023"]
[White "Przybylski, Wojciech"]
[Black "Figorito, Nick"]
[WhiteFideId "1117599"]
[BlackFideId "30923689"]
[WhiteElo "2222"]
[BlackElo "2374"]
[Result "1-0"]
[Round "07"]
[TimeControl "180+2"]
[Date "2023.05.23"]
[WhiteClock "0:00:38"]
[BlackClock "0:00:23"]

1. e4 {[%clk 0:03:00]}  e6 {[%clk 0:03:00]} 2. d4 {[%clk 0:02:57]}  d5 {[%clk 0:03:01]} 3. Nd2 {[%clk 0:02:55]}  Nf6 {[%clk 0:03:01]} 4. e5 {[%clk 0:02:53]}  Nfd7 {[%clk 0:03:01]} 5. f4 {[%clk 0:02:53]}  c5 {[%clk 0:03:02]} 6. Ndf3 {[%clk 0:02:53]}  cxd4 {[%clk 0:03:02]} 7. Nxd4 {[%clk 0:02:52]}  Nc6 {[%clk 0:03:02]} 8. Ngf3 {[%clk 0:02:52]}  Bc5 {[%clk 0:03:02]} 9. Be3 {[%clk 0:02:51]}  Qb6 {[%clk 0:03:01]} 10. Rb1 {[%clk 0:02:43]}  Nxd4 {[%clk 0:02:58]} 11. Bxd4 {[%clk 0:02:41]}  Bxd4 {[%clk 0:02:56]} 12. Qxd4 {[%clk 0:02:40]}  Qxd4 {[%clk 0:02:53]} 13. Nxd4 {[%clk 0:02:39]}  O-O {[%clk 0:02:49]} 14. Bb5 {[%clk 0:02:35]}  Nc5 {[%clk 0:02:47]} 15. O-O {[%clk 0:02:33]}  a6 {[%clk 0:02:47]} 16. Bd3 {[%clk 0:02:31]}  Nxd3 {[%clk 0:02:39]} 17. cxd3 {[%clk 0:02:30]}  Bd7 {[%clk 0:02:39]} 18. Kf2 {[%clk 0:02:30]}  Rfc8 {[%clk 0:02:37]} 19. Ke3 {[%clk 0:02:29]}  h5 {[%clk 0:02:30]} 20. Rfc1 {[%clk 0:02:25]}  g6 {[%clk 0:02:29]} 21. Nf3 {[%clk 0:02:15]}  Kf8 {[%clk 0:02:25]} 22. Kd4 {[%clk 0:02:14]}  Ke7 {[%clk 0:02:21]} 23. Ng1 {[%clk 0:02:10]}  b6 {[%clk 0:02:17]} 24. Ne2 {[%clk 0:02:08]}  Rxc1 {[%clk 0:02:16]} 25. Rxc1 {[%clk 0:02:08]}  Rc8 {[%clk 0:02:16]} 26. Rxc8 {[%clk 0:02:06]}  Bxc8 {[%clk 0:02:17]} 27. a3 {[%clk 0:02:01]}  Bd7 {[%clk 0:02:16]} 28. Nc3 {[%clk 0:02:01]}  Kd8 {[%clk 0:02:10]} 29. Na2 {[%clk 0:01:55]}  Kc7 {[%clk 0:02:02]} 30. Nb4 {[%clk 0:01:52]}  Kb7 {[%clk 0:02:02]} 31. Nc2 {[%clk 0:01:50]}  Kc6 {[%clk 0:01:53]} 32. b3 {[%clk 0:01:49]}  Kb7 {[%clk 0:01:52]} 33. Kc3 {[%clk 0:01:47]}  Bb5 {[%clk 0:01:46]} 34. Nd4 {[%clk 0:01:46]}  Be8 {[%clk 0:01:46]} 35. Kd2 {[%clk 0:01:46]}  Bd7 {[%clk 0:01:44]} 36. Ke3 {[%clk 0:01:46]}  Be8 {[%clk 0:01:44]} 37. Kf2 {[%clk 0:01:44]}  Kc7 {[%clk 0:01:44]} 38. Kf3 {[%clk 0:01:35]}  Kd8 {[%clk 0:01:44]} 39. Nc2 {[%clk 0:01:34]}  Bb5 {[%clk 0:01:37]} 40. Ke3 {[%clk 0:01:31]}  Kc7 {[%clk 0:01:35]} 41. g3 {[%clk 0:01:30]}  Be8 {[%clk 0:01:35]} 42. Nb4 {[%clk 0:01:28]}  Kb7 {[%clk 0:01:33]} 43. Na2 {[%clk 0:01:25]}  Bb5 {[%clk 0:01:31]} 44. Nc3 {[%clk 0:01:25]}  Be8 {[%clk 0:01:30]} 45. Ne2 {[%clk 0:01:24]}  Bb5 {[%clk 0:01:29]} 46. Nd4 {[%clk 0:01:24]}  Be8 {[%clk 0:01:30]} 47. h3 {[%clk 0:01:22]}  Kc7 {[%clk 0:01:29]} 48. Nc2 {[%clk 0:01:19]}  Bb5 {[%clk 0:01:29]} 49. Nb4 {[%clk 0:01:17]}  Kb7 {[%clk 0:01:28]} 50. Kd4 {[%clk 0:01:16]}  Be8 {[%clk 0:01:27]} 51. Na2 {[%clk 0:01:14]}  Bd7 {[%clk 0:01:27]} 52. Nc3 {[%clk 0:01:14]}  Be8 {[%clk 0:01:27]} 53. Nd1 {[%clk 0:01:14]}  Bd7 {[%clk 0:01:28]} 54. Ne3 {[%clk 0:01:14]}  Be8 {[%clk 0:01:27]} 55. g4 {[%clk 0:01:12]}  hxg4 {[%clk 0:01:27]} 56. Nxg4 {[%clk 0:01:12]}  Bb5 {[%clk 0:01:21]} 57. Nf6 {[%clk 0:01:11]}  Kc7 {[%clk 0:01:18]} 58. Ng4 {[%clk 0:01:11]}  Kd8 {[%clk 0:01:13]} 59. Ke3 {[%clk 0:01:06]}  Ke7 {[%clk 0:01:12]} 60. Nf6 {[%clk 0:01:03]}  Kd8 {[%clk 0:01:09]} 61. h4 {[%clk 0:01:00]}  Ke7 {[%clk 0:01:09]} 62. Ng4 {[%clk 0:01:00]}  Kd8 {[%clk 0:01:09]} 63. Nf2 {[%clk 0:01:00]}  Ke7 {[%clk 0:01:08]} 64. Kf3 {[%clk 0:00:59]}  Kd8 {[%clk 0:01:07]} 65. Kg4 {[%clk 0:00:59]}  Ke7 {[%clk 0:01:08]} 66. Kg5 {[%clk 0:00:59]}  Be8 {[%clk 0:00:58]} 67. Ng4 {[%clk 0:00:57]}  Bb5 {[%clk 0:00:58]} 68. d4 {[%clk 0:00:54]}  Bd3 {[%clk 0:00:52]} 69. Kh6 {[%clk 0:00:52]}  Bf5 {[%clk 0:00:47]} 70. Nf6 {[%clk 0:00:51]}  Bc2 {[%clk 0:00:47]} 71. b4 {[%clk 0:00:50]}  Ba4 {[%clk 0:00:35]} 72. Kg7 {[%clk 0:00:49]}  Bb5 {[%clk 0:00:34]} 73. Ng8+ {[%clk 0:00:47]}  Ke8 {[%clk 0:00:33]} 74. Nh6 {[%clk 0:00:47]}  Ke7 {[%clk 0:00:27]} 75. Nxf7 {[%clk 0:00:46]}  Be8 {[%clk 0:00:27]} 76. Nh8 {[%clk 0:00:45]}  a5 {[%clk 0:00:25]} 77. bxa5 {[%clk 0:00:42]}  bxa5 {[%clk 0:00:25]} 78. Nxg6+ {[%clk 0:00:42]}  Kd7 {[%clk 0:00:26]} 79. h5 {[%clk 0:00:42]}  Kc6 {[%clk 0:00:24]} 80. h6 {[%clk 0:00:39]}  Kb5 {[%clk 0:00:24]} 81. h7 {[%clk 0:00:39]}  Kc4 {[%clk 0:00:23]} 82. h8=Q {[%clk 0:00:38]} 1-0


[Site "https://www.chess.com"]

[Event "Titled Tuesday Blitz May 23 Late 2023"]
[White "Smiechu"]
[Black "Jimenez Almeida, Luis David"]
[BlackFideId "22242244"]
[WhiteElo "2361"]
[BlackElo "2245"]
[Result "1-0"]
[Round "07"]
[TimeControl "180+2"]
[Date "2023.05.23"]
[WhiteClock "0:00:31"]
[BlackClock "0:00:19"]

1. e4 {[%clk 0:03:00]}  c5 {[%clk 0:02:59]} 2. Nf3 {[%clk 0:03:00]}  e6 {[%clk 0:02:59]} 3. d4 {[%clk 0:03:00]}  cxd4 {[%clk 0:03:00]} 4. Nxd4 {[%clk 0:03:01]}  a6 {[%clk 0:03:01]} 5. Bd3 {[%clk 0:03:00]}  Nc6 {[%clk 0:03:00]} 6. Be3 {[%clk 0:02:59]}  Nf6 {[%clk 0:02:59]} 7. Nc3 {[%clk 0:02:59]}  Be7 {[%clk 0:02:58]} 8. O-O {[%clk 0:02:59]}  Qc7 {[%clk 0:02:58]} 9. f4 {[%clk 0:02:56]}  d6 {[%clk 0:02:58]} 10. Qf3 {[%clk 0:02:55]}  O-O {[%clk 0:02:57]} 11. Rae1 {[%clk 0:02:53]}  Nxd4 {[%clk 0:02:34]} 12. Bxd4 {[%clk 0:02:53]}  e5 {[%clk 0:02:35]} 13. fxe5 {[%clk 0:02:52]}  dxe5 {[%clk 0:02:36]} 14. Be3 {[%clk 0:02:52]}  Be6 {[%clk 0:02:29]} 15. Bg5 {[%clk 0:02:48]}  Rfe8 {[%clk 0:02:21]} 16. Bxf6 {[%clk 0:02:41]}  Bxf6 {[%clk 0:02:20]} 17. Nd5 {[%clk 0:02:40]}  Bxd5 {[%clk 0:02:19]} 18. exd5 {[%clk 0:02:41]}  Qb6+ {[%clk 0:02:14]} 19. Kh1 {[%clk 0:02:38]}  Rad8 {[%clk 0:01:29]} 20. Qf5 {[%clk 0:02:36]}  Rxd5 {[%clk 0:01:25]} 21. Qxh7+ {[%clk 0:02:34]}  Kf8 {[%clk 0:01:25]} 22. Qh5 {[%clk 0:02:10]}  Qd8 {[%clk 0:00:55]} 23. Bc4 {[%clk 0:01:27]}  Rd7 {[%clk 0:00:55]} 24. Qh8+ {[%clk 0:00:52]}  Ke7 {[%clk 0:00:54]} 25. Qh3 {[%clk 0:00:52]}  Rd4 {[%clk 0:00:45]} 26. Qb3 {[%clk 0:00:47]}  Qc7 {[%clk 0:00:37]} 27. Bxf7 {[%clk 0:00:43]}  Rh8 {[%clk 0:00:37]} 28. Qe6+ {[%clk 0:00:41]}  Kd8 {[%clk 0:00:37]} 29. Rxf6 {[%clk 0:00:34]}  e4 {[%clk 0:00:32]} 30. h3 {[%clk 0:00:32]}  gxf6 {[%clk 0:00:19]} 31. Qxf6+ {[%clk 0:00:32]}  Qe7 {[%clk 0:00:20]} 32. Qxh8+ {[%clk 0:00:32]}  Kc7 {[%clk 0:00:19]} 33. Qxd4 {[%clk 0:00:31]} 1-0


[Site "https://www.chess.com"]

[Event "Titled Tuesday Blitz May 23 Late 2023"]
[White "Blitz"]
[Black "Celestino, Rafael Teixeira"]
[BlackFideId "2108925"]
[WhiteElo "2476"]
[BlackElo "2360"]
[Result "1-0"]
[Round "07"]
[TimeControl "180+2"]
[Date "2023.05.23"]
[WhiteClock "0:02:09"]
[BlackClock "0:00:14"]

1. d4 {[%clk 0:03:00]}  Nf6 {[%clk 0:02:59]} 2. Nc3 {[%clk 0:02:58]}  e6 {[%clk 0:02:59]} 3. e4 {[%clk 0:02:50]}  Bb4 {[%clk 0:02:58]} 4. e5 {[%clk 0:02:51]}  Nd5 {[%clk 0:02:58]} 5. Qg4 {[%clk 0:02:51]}  Nxc3 {[%clk 0:02:51]} 6. Qxg7 {[%clk 0:02:49]}  Rf8 {[%clk 0:02:51]} 7. a3 {[%clk 0:02:49]}  Be7 {[%clk 0:02:20]} 8. bxc3 {[%clk 0:02:47]}  c5 {[%clk 0:02:21]} 9. Nf3 {[%clk 0:02:38]}  Qa5 {[%clk 0:02:19]} 10. Bd2 {[%clk 0:02:35]}  Nc6 {[%clk 0:02:16]} 11. Qxh7 {[%clk 0:02:24]}  cxd4 {[%clk 0:02:15]} 12. cxd4 {[%clk 0:02:24]}  Qd5 {[%clk 0:02:15]} 13. c4 {[%clk 0:02:22]}  Qxf3 {[%clk 0:00:24]} 14. gxf3 {[%clk 0:02:21]}  b6 {[%clk 0:00:25]} 15. Bh6 {[%clk 0:02:15]}  Nxd4 {[%clk 0:00:24]} 16. Bxf8 {[%clk 0:02:15]}  Bxf8 {[%clk 0:00:25]} 17. Bg2 {[%clk 0:02:11]}  Ba6 {[%clk 0:00:23]} 18. Rd1 {[%clk 0:02:10]}  Nc6 {[%clk 0:00:20]} 19. f4 {[%clk 0:02:10]}  Rc8 {[%clk 0:00:19]} 20. Qd3 {[%clk 0:02:09]}  Bb7 {[%clk 0:00:14]} 21. Qxd7# {[%clk 0:02:09]} 1-0


[Site "https://www.chess.com"]

[Event "Titled Tuesday Blitz May 23 Late 2023"]
[White "Prieto Aranguren, Alain"]
[Black "Bilan, Danila"]
[WhiteFideId "2268906"]
[BlackFideId "24161918"]
[WhiteElo "2209"]
[BlackElo "2182"]
[Result "0-1"]
[Round "07"]
[TimeControl "180+2"]
[Date "2023.05.23"]
[WhiteClock "0:00:19"]
[BlackClock "0:00:12"]

1. e4 {[%clk 0:03:00]}  c6 {[%clk 0:02:56]} 2. d4 {[%clk 0:03:00]}  d5 {[%clk 0:02:54]} 3. exd5 {[%clk 0:03:00]}  cxd5 {[%clk 0:02:54]} 4. Bd3 {[%clk 0:03:00]}  Nc6 {[%clk 0:02:54]} 5. Nf3 {[%clk 0:03:00]}  Bg4 {[%clk 0:02:53]} 6. c3 {[%clk 0:03:00]}  e6 {[%clk 0:02:52]} 7. O-O {[%clk 0:03:00]}  Bd6 {[%clk 0:02:52]} 8. Re1 {[%clk 0:02:59]}  Qc7 {[%clk 0:02:51]} 9. h3 {[%clk 0:02:55]}  Bh5 {[%clk 0:02:52]} 10. Nbd2 {[%clk 0:02:53]}  Nf6 {[%clk 0:02:46]} 11. Nf1 {[%clk 0:02:52]}  O-O {[%clk 0:02:41]} 12. Bg5 {[%clk 0:02:51]}  Rab8 {[%clk 0:02:36]} 13. Bxf6 {[%clk 0:02:40]}  gxf6 {[%clk 0:02:36]} 14. Qc2 {[%clk 0:02:23]}  Bg6 {[%clk 0:02:31]} 15. Ne3 {[%clk 0:02:18]}  b5 {[%clk 0:02:19]} 16. Rac1 {[%clk 0:02:10]}  Rfc8 {[%clk 0:02:16]} 17. Ng4 {[%clk 0:02:08]}  Kg7 {[%clk 0:02:14]} 18. Qd2 {[%clk 0:02:05]}  Bf4 {[%clk 0:02:12]} 19. Ne3 {[%clk 0:02:03]}  a5 {[%clk 0:02:04]} 20. Kh1 {[%clk 0:01:50]}  Qd6 {[%clk 0:01:56]} 21. g3 {[%clk 0:01:49]}  Bh6 {[%clk 0:01:50]} 22. Nh4 {[%clk 0:01:38]}  b4 {[%clk 0:01:37]} 23. Kg2 {[%clk 0:01:22]}  a4 {[%clk 0:01:31]} 24. f4 {[%clk 0:01:13]}  f5 {[%clk 0:01:01]} 25. Nf3 {[%clk 0:01:09]}  a3 {[%clk 0:01:00]} 26. bxa3 {[%clk 0:01:06]}  bxa3 {[%clk 0:00:55]} 27. Ne5 {[%clk 0:01:04]}  Nxe5 {[%clk 0:00:46]} 28. fxe5 {[%clk 0:01:03]}  Qc6 {[%clk 0:00:41]} 29. Kh2 {[%clk 0:00:54]}  Rb2 {[%clk 0:00:35]} 30. Rc2 {[%clk 0:00:52]}  Qxc3 {[%clk 0:00:28]} 31. Re2 {[%clk 0:00:29]}  Qxd2 {[%clk 0:00:24]} 32. Rcxd2 {[%clk 0:00:24]}  Rxd2 {[%clk 0:00:17]} 33. Rxd2 {[%clk 0:00:24]}  Bxe3 {[%clk 0:00:18]} 34. Re2 {[%clk 0:00:24]}  f4 {[%clk 0:00:16]} 35. Bxg6 {[%clk 0:00:22]}  hxg6 {[%clk 0:00:17]} 36. Kg2 {[%clk 0:00:23]}  Bxd4 {[%clk 0:00:14]} 37. gxf4 {[%clk 0:00:23]}  Rb8 {[%clk 0:00:13]} 38. Kf3 {[%clk 0:00:23]}  Rb2 {[%clk 0:00:12]} 39. Re1 {[%clk 0:00:23]}  Rxa2 {[%clk 0:00:12]} 40. Rd1 {[%clk 0:00:22]}  Bc3 {[%clk 0:00:11]} 41. Rd3 {[%clk 0:00:22]}  d4 {[%clk 0:00:12]} 42. Ke4 {[%clk 0:00:22]}  Re2+ {[%clk 0:00:12]} 43. Kf3 {[%clk 0:00:19]}  Re3+ {[%clk 0:00:12]} 0-1


[Site "https://www.chess.com"]

[Event "Titled Tuesday Blitz May 23 Late 2023"]
[White "Toniutti, Ezio"]
[Black "Weinstein, Joshua Ross"]
[WhiteFideId "113034"]
[BlackFideId "30927714"]
[WhiteElo "2215"]
[BlackElo "2344"]
[Result "1-0"]
[Round "07"]
[TimeControl "180+2"]
[Date "2023.05.23"]
[WhiteClock "0:00:31"]
[BlackClock "0:00:00"]

1. d4 {[%clk 0:02:59]}  Nf6 {[%clk 0:03:00]} 2. c4 {[%clk 0:02:58]}  g6 {[%clk 0:02:59]} 3. Nc3 {[%clk 0:02:57]}  d5 {[%clk 0:03:00]} 4. Bg5 {[%clk 0:02:56]}  Ne4 {[%clk 0:02:59]} 5. Bh4 {[%clk 0:02:56]}  Nxc3 {[%clk 0:02:56]} 6. bxc3 {[%clk 0:02:57]}  Bg7 {[%clk 0:02:57]} 7. e3 {[%clk 0:02:58]}  dxc4 {[%clk 0:02:56]} 8. Bxc4 {[%clk 0:02:58]}  O-O {[%clk 0:02:57]} 9. Nf3 {[%clk 0:02:58]}  Bg4 {[%clk 0:02:54]} 10. h3 {[%clk 0:02:56]}  Bxf3 {[%clk 0:02:54]} 11. Qxf3 {[%clk 0:02:57]}  Nc6 {[%clk 0:02:51]} 12. O-O {[%clk 0:02:57]}  Qd7 {[%clk 0:02:45]} 13. Rab1 {[%clk 0:02:56]}  Rab8 {[%clk 0:02:42]} 14. Bb5 {[%clk 0:02:53]}  e6 {[%clk 0:02:39]} 15. Bg3 {[%clk 0:02:50]}  a6 {[%clk 0:02:36]} 16. Bd3 {[%clk 0:02:34]}  b5 {[%clk 0:02:26]} 17. Rfd1 {[%clk 0:02:28]}  Na5 {[%clk 0:02:11]} 18. h4 {[%clk 0:02:18]}  Nc4 {[%clk 0:01:49]} 19. h5 {[%clk 0:02:10]}  Rb6 {[%clk 0:01:25]} 20. Qf4 {[%clk 0:02:06]}  e5 {[%clk 0:01:14]} 21. Qf3 {[%clk 0:01:37]}  exd4 {[%clk 0:01:12]} 22. cxd4 {[%clk 0:01:35]}  Na3 {[%clk 0:00:38]} 23. Rbc1 {[%clk 0:01:29]}  c6 {[%clk 0:00:34]} 24. Bf4 {[%clk 0:01:14]}  Qd5 {[%clk 0:00:23]} 25. h6 {[%clk 0:00:50]}  Qxf3 {[%clk 0:00:11]} 26. gxf3 {[%clk 0:00:50]}  Bf6 {[%clk 0:00:11]} 27. Bd6 {[%clk 0:00:50]}  Bg5 {[%clk 0:00:04]} 28. Bxa3 {[%clk 0:00:45]}  Rc8 {[%clk 0:00:04]} 29. Bc5 {[%clk 0:00:40]}  Rb7 {[%clk 0:00:04]} 30. f4 {[%clk 0:00:40]}  Bxh6 {[%clk 0:00:04]} 31. Be4 {[%clk 0:00:40]}  Bg7 {[%clk 0:00:04]} 32. Bd6 {[%clk 0:00:35]}  Rd7 {[%clk 0:00:03]} 33. Bb4 {[%clk 0:00:31]}  Rdc7 {[%clk 0:00:00]} 34. Ba5 {[%clk 0:00:31]} 1-0


[Site "https://www.chess.com"]